Cogmind - Beta 13 @@@ ROGUE MODE // 2024.04.15 @ 22:32:37 Player: m1m1c Result: Self-destructed Performance ------------- Evolutions (2) 1000 Regions Visited (3) 600 Robots Destroyed (19) 95 Value Destroyed (321) 321 Prototype IDs (1) 20 Alien Tech Used (0) 0 Bonus (4) 4 TOTAL SCORE: 2040 Bonus ------- High Alert Combat Kills 4 Cogmind --------- Core Integrity 262/550 Matter 13/300 Energy 100/100 System Corruption 0% Temperature Cool (0) Movement Core (50) Location -8/Materials Parts ------- > --- POWER (1) -------- (None) > --- PROPULSION (4) --- (None) > --- UTILITY (4) ------ Visual Processing Unit Signal Interpreter > --- WEAPON (2) ------- (None) > --- INVENTORY (5) ---- Light Ion Engine Terrain Scanner Propulsion Shielding Rocket Launcher Plasma Cutter Peak State ------------ > --- POWER ------------ Heavy Ion Engine > --- PROPULSION ------- Flight Unit Flight Unit > --- UTILITY ---------- Small Storage Unit Visual Processing Unit Sensor Array Signal Interpreter > --- WEAPON ----------- (None) > --- INVENTORY -------- Light Ion Engine Light Ion Engine Hover Unit Terrain Scanner Assault Rifle Assault Rifle Rocket Launcher [Rating: 10] Favorites ----------- Power Light Ion Engine Engine Light Ion Engine Propulsion Flight Unit Leg Aluminum Leg Hover Unit Hover Unit Flight Unit Flight Unit Utility Small Storage Unit Device Sensor Array Storage Small Storage Unit Processor Visual Processing Unit Weapon Assault Rifle Ballistic Gun Assault Rifle Launcher Grenade Launcher Build | -11 -10 -9 -8 ------- Run | Yrd Mat Mat Mat Slots Evolved 4 | . . 2 2 Power . | . . . . Propulsion 2 | . . . 2 Utility 2 | . . 2 . Weapon . | . . . . Parts Attached 29 | . 17 11 1 Power 2 | . . 2 . Engine 2 | . . 2 . Core . | . . . . Reactor . | . . . . Propulsion 8 | . 4 4 . Treads . | . . . . Leg . | . . . . Wheel . | . . . . Hover 1 | . . 1 . Flight 7 | . 4 3 . Utility 5 | . 2 2 1 Device 3 | . 1 1 1 Storage . | . . . . Processor 2 | . 1 1 . Hackware . | . . . . Protection . | . . . . Artifact . | . . . . Weapon 14 | . 11 3 . Energy Gun . | . . . . Energy Cannon . | . . . . Ballistic Gun 11 | . 8 3 . Ballistic Cannon . | . . . . Launcher 3 | . 3 . . Special Weapon . | . . . . Impact Weapon . | . . . . Slashing Weapon . | . . . . Piercing Weapon . | . . . . Special Melee Weapon . | . . . . Unidentified Prototypes 1 | . . 1 . Parts Lost 5 | . 1 1 3 Power . | . . . . Propulsion 3 | . 1 1 1 Utility 2 | . . . 2 Weapon . | . . . . Highest Loss Streak 2 | . 1 1 2 To Critical Strikes . | . . . . Average Slot Usage (%) 67 | . 78 62 28 Engine 8 | . 14 . . Leg 4 | . 7 . . Hover 2 | . . 8 . Flight 13 | . 18 3 3 Device 3 | . . 11 7 Storage 11 | . 14 9 . Processor 13 | . 8 22 18 Ballistic Gun 9 | . 12 6 . Naked Turns . | . . . . Heaviest Build 13 | 12 13 10 1 Greatest Support 20 | 20 20 8 4 Greatest Overweight (x) 2 | . 2 1 . Average Overweight (x) . | . . . . Largest Inventory Capacity 8 | 8 8 8 5 Average Capacity 7 | 8 8 7 5 Most Carried 8 | 6 8 8 5 Average Carried 6 | 6 7 6 5 Final Capacity 8 | 8 8 5 5 Final Carried 8 | 6 8 5 5 Class Distribution -------------------- 64% | Mutant 25% | Scout 10% | Skirmisher Dominant Class ---------------- Mutant | -10/Materials Skirmisher | -9/Materials Scout | -8/Materials Resources | -11 -10 -9 -8 ----------- Run | Yrd Mat Mat Mat Matter Collected 490 | 200 243 47 . Remotely . | . . . . Salvage Created 468 | . 378 90 . Parts 36 | . 33 3 . Haulers Intercepted 1 | . . 1 . Recyclers Shooed 2 | . 2 . . Parts Field Recycled . | . . . . Retrieved Matter . | . . . . Parts Self-Destructed . | . . . . Prevented . | . . . . Kills | -11 -10 -9 -8 ------- Run | Yrd Mat Mat Mat Combat Hostiles Destroyed 11 | . 10 1 . Guns 7 | . 6 1 . AOE 4 | . 4 . . Classes Destroyed 7 | . 6 1 . Worker 1 | . 1 . . Builder 1 | . 1 . . Hauler 1 | . . 1 . Recycler 2 | . 2 . . Watcher 3 | . 3 . . Swarmer 6 | . 6 . . Grunt 5 | . 4 1 . Best Kill Streak 9 | . 9 1 . Combat Bots Only 4 | . 4 1 . Max Kills in Single Turn 2 | . 2 1 . Gunslinging . | . . . . Exploded 1 | . 1 . . Melee . | . . . . Uniques/NPCs Destroyed . | . . . . Combat | -11 -10 -9 -8 -------- Run | Yrd Mat Mat Mat Hostile Shots Fired 117 | . 31 22 64 Missed 47 | . 12 9 26 Damage Taken 737 | . 227 173 337 Core 406 | . 37 81 288 Absorbed by Shields . | . . . . Core Remaining (%) 88 | 100 85 79 . Volleys Fired 45 | . 35 10 . Largest 2 | . 2 2 . Hottest 40 | . 40 40 . Shots Fired 75 | . 57 18 . Gun 62 | . 44 18 . Cannon . | . . . . Launcher 13 | . 13 . . Special . | . . . . Kinetic 62 | . 44 18 . Thermal . | . . . . Explosive 13 | . 13 . . Electromagnetic . | . . . . Robot Hit Streak 6 | . 4 6 . Robot Miss Streak 2 | . 2 2 . Penetration Max . | . . . . Secondary Targets . | . . . . Shots Hit Robots 40 | . 29 11 . Core Hits 29 | . 25 4 . Critical Kills . | . . . . Critical Parts Destroyed . | . . . . Critical Strikes . | . . . . Melee Attacks . | . . . . Impact . | . . . . Slashing . | . . . . Piercing . | . . . . Sneak Attacks . | . . . . Combat Hostiles . | . . . . Follow-up Attacks . | . . . . Damage Inflicted 944 | . 796 148 . Guns 400 | . 263 137 . Cannons . | . . . . Explosions 533 | . 533 . . Melee . | . . . . Ramming 11 | . . 11 . Kinetic 400 | . 263 137 . Thermal . | . . . . Explosive 533 | . 533 . . Electromagnetic . | . . . . Impact . | . . . . Slashing . | . . . . Piercing . | . . . . Highest Corruption . | . . . . Average Corruption . | . . . . Corruption Purged . | . . . . Corruption Blocked . | . . . . Overload Shots . | . . . . Overflow Damage 14 | . 14 . . Projectiles . | . . . . Explosions 14 | . 14 . . Melee . | . . . . Knockbacks . | . . . . Impact . | . . . . Kinetic . | . . . . Secondary . | . . . . Self-Inflicted Damage 64 | . 59 5 . Shots 2 | . 2 . . Rammed 1 | . . 1 . Targets Rammed 1 | . . 1 . Kicked . | . . . . Crushed . | . . . . Highest Temperature 8 | . 8 . . Average Temperature 4 | . 4 . . Received Heat Transfer 90 | . 36 54 . Siege Activations . | . . . . Robots Corrupted . | . . . . Combat Hostiles . | . . . . Parts Fried . | . . . . Impact Corruptions . | . . . . Robots Melted . | . . . . Combat Hostiles . | . . . . Parts Melted . | . . . . Heat Transferred . | . . . . Parts Sabotaged . | . . . . Parts Stolen . | . . . . Parts Stripped . | . . . . Power Chain Reactions . | . . . . Alert | -11 -10 -9 -8 ------- Run | Yrd Mat Mat Mat Peak Influence 479 | . 479 239 100 Initial 117 | . . 117 100 Average 206 | . 255 172 34 Maximum Alert Level 2 | . 2 1 . Low Security (%) 56 | 100 42 69 100 Level 1 24 | . 27 30 . Level 2 19 | . 30 . . Level 3 . | . . . . Level 4 . | . . . . Level 5 . | . . . . High Security . | . . . . Max Security . | . . . . Squads Dispatched 2 | . 1 . 1 Investigation 2 | . 1 . 1 Extermination . | . . . . Reinforcement . | . . . . Assault . | . . . . Garrison . | . . . . Intercept . | . . . . Searches Triggered . | . . . . Construction Impeded . | . . . . Haulers Reinforced . | . . . . Active Scanning Responses . | . . . . Cargo Convoy Interrupts . | . . . . Stealth | -11 -10 -9 -8 --------- Run | Yrd Mat Mat Mat Distress Signals 3 | . 2 1 . Communications Jammed . | . . . . Distress Signals . | . . . . Times Spotted 41 | . 18 12 11 Peak Tracking Total 11 | . 4 9 11 Tactical Retreats 5 | . 1 3 1 Traps | -11 -10 -9 -8 ------- Run | Yrd Mat Mat Mat Traps Triggered 2 | . 1 . 1 Indirectly . | . . . . Trap Hack Attempts . | . . . . Triggered . | . . . . Disarmed . | . . . . Reprogrammed . | . . . . Reused . | . . . . Traps Extracted . | . . . . Installed . | . . . . Triggered . | . . . . Machines | -11 -10 -9 -8 ---------- Run | Yrd Mat Mat Mat Machines Disabled 1 | . 1 . . Max in Single Turn 1 | . 1 . . Machines Repaired . | . . . . Machines Dismantled . | . . . . Machines Sabotaged . | . . . . Overloaded Fab Kills . | . . . . Hacking | -11 -10 -9 -8 --------- Run | Yrd Mat Mat Mat Machines Accessed 8 | . 4 2 2 Terminals 8 | . 4 2 2 Fabricators . | . . . . Repair Stations . | . . . . Recycling Units . | . . . . Scanalyzers . | . . . . Garrison Access . | . . . . Total Hacks 17 | . 8 3 6 Successful 2 | . 1 . 1 Failed 15 | . 7 3 5 Catastrophic . | . . . . Database Lockouts . | . . . . Manual 14 | . 7 1 6 Terminals 17 | . 8 3 6 Fabricators . | . . . . Repair Stations . | . . . . Recycling Units . | . . . . Scanalyzers . | . . . . Garrison Access . | . . . . Terminal Hacks 2 | . 1 . 1 Unreport Threat 1 | . . . 1 Dispatch Records 1 | . 1 . . Fabricator Hacks . | . . . . Repair Station Hacks . | . . . . Recycling Unit Hacks . | . . . . Scanalyzer . | . . . . Garrison Access Hacks . | . . . . Unauthorized Hacks . | . . . . Terminals . | . . . . Fabricators . | . . . . Repair Stations . | . . . . Recycling Units . | . . . . Scanalyzers . | . . . . Garrison Access . | . . . . Data Cores Recovered . | . . . . Used . | . . . . Hacking Detections 8 | . 4 2 2 Full Trace Events . | . . . . Feedback Events . | . . . . Feedback Blocked . | . . . . Robot Schematics Acquired . | . . . . Robots Built . | . . . . Authchips . | . . . . Time . | . . . . Total Robot Build Rating . | . . . . Part Schematics Acquired . | . . . . Parts Built . | . . . . Authchips . | . . . . Time . | . . . . Total Part Build Rating . | . . . . Parts Repaired . | . . . . Time . | . . . . Parts Recycled . | . . . . Recycled Matter . | . . . . Retrieved Matter . | . . . . Retrieved Components . | . . . . Parts Scanalyzed . | . . . . Part Schematics Acquired . | . . . . Parts Damaged . | . . . . Bothacking | -11 -10 -9 -8 ------------ Run | Yrd Mat Mat Mat Used RIF Installer . | . . . . Robots Hacked . | . . . . Non-combat . | . . . . Combat . | . . . . Robot Hacks Applied . | . . . . Relay Couplers Released . | . . . . Fabnet Peak Effective % . | . . . . Robots Rewired . | . . . . Allies Hacked . | . . . . Hacks Repelled . | . . . . Allies | -11 -10 -9 -8 -------- Run | Yrd Mat Mat Mat Total Allies . | . . . . Largest Group . | . . . . Highest-Rated Group . | . . . . Highest-Rated Ally . | . . . . Total Orders . | . . . . Ally Attacks . | . . . . Total Damage . | . . . . Kills . | . . . . Allies Corrupted . | . . . . Allies Melted . | . . . . Intel | -11 -10 -9 -8 ------- Run | Yrd Mat Mat Mat Robot Analysis Total . | . . . . Derelict Logs Recovered . | . . . . Drone Launches . | . . . . Drone Recoveries . | . . . . Exploration | -11 -10 -9 -8 ------------- Run | Yrd Mat Mat Mat Turns Passed 749 | 4 473 176 96 Spaces Moved 1043 | 4 621 214 204 Core 124 | . . 3 121 Treads . | . . . . Legs 76 | 4 72 . . Wheels . | . . . . Hover 146 | . . 146 . Flight 697 | . 549 65 83 Fastest Speed 37 | 120 37 37 40 Average Speed 54 | 120 55 59 45 Slowest Speed 200 | 120 200 120 50 Overloaded Moves . | . . . . Propulsion Burnouts . | . . . . Robots Hopped 9 | . 8 . 1 Cave-ins Triggered . | . . . . Exploration Rate (%) 30 | 2 74 19 25 Regions Visited 3 Branch Regions . Pre-discovered Areas . | . . . . Known Exits Taken 1 | . . 1 . Unknown Exits Taken 2 | 1 1 . . Scrap Searched . | . . . . Spaces Dug 6 | . 6 . . Terrain Destroyed 81 | . 81 . . Melee . | . . . . Projectile . | . . . . AOE 81 | . 81 . . Terrain Rammed . | . . . . Walls Destroyed . | . . . . Machines Disabled . | . . . . Actions | -11 -10 -9 -8 --------- Run | Yrd Mat Mat Mat Total 1149 | 3 693 249 204 Wait . | . . . . Move 1022 | 3 604 213 202 Hop 9 | . 8 . 1 Pick Up 8 | . 6 2 . Fast Attach 7 | . 5 1 1 Attach 22 | . 12 10 . Detach 22 | . 14 8 . Swap . | . . . . Drop 13 | . 9 4 . Fire 45 | . 35 10 . Melee . | . . . . Ram 1 | . . 1 . Kick . | . . . . Crush . | . . . . Escape Stasis . | . . . . Rewire . | . . . . Trap . | . . . . Miscellaneous . | . . . . Route ------- -11/Scrapyard -10/Materials (discovered 2 exits: *Mat / [*Min]) -9/Materials -8/Materials History --------- Turn | Location | Event 1 | -11/Scrapyard | Discovered new exit (range 1) 5 | -11/Scrapyard | Entered Materials 193 | -10/Materials | Discovered new exit (range 8) 291 | -10/Materials | Discovered new exit (range 15) 353 | -10/Materials | Build established: Mutant 478 | -10/Materials | Entered another Materials area 478 | -9/Materials | Evolved 2 slots: Utility x2 639 | -9/Materials | Discovered new exit (range 17) 646 | -9/Materials | Identified exit to Materials 654 | -9/Materials | Entered another Materials area 654 | -8/Materials | Evolved 2 slots: Propulsion x2 750 | -8/Materials | Core integrity fell below 50% 750 | -8/Materials | Self-destructed Last Messages --------------- GOAL=ESCAPE Connecting with Terminal... >>Alert(Purge) Purged threat record, alert level lowered. Connecting with Terminal... Sensor Array destroyed. Acquired Imp. Sensor Array. Flight Unit destroyed. K-01 Serf collects debris. Triggered Alarm Trap. An alarm sounds. ALERT: Alarm triggered, dispatching investigation squad. U-05 Engineer lays Concrete. K-01 Serf collects debris. U-05 Engineer lays Concrete. Connecting with Terminal... U-05 Engineer lays Concrete. Imp. Sensor Array destroyed. K-01 Serf collects debris. Map ----- +----------------------------------------------------+ | ????????????# #?????# "T" #???# #?? | | ????????????# """ ###???# """ #???# #?? | | ????????????# """ ""#???########???# #?? | | ????????????# """ ""#??????????????# #?? | | ????????????# T"#??????????????# #?? | | ????????????# ""#?????????????## ##? | | ????????????####### """ ""#?????????##### #? | | ??????????????????# """ ###?????????# T #? | | ??????????????????# """ ##??????????# ### #? | | ??????????????????# #??????????# #?#####? | | ??????????????????# ! #??????????# #??????? | | ??????????????????# * #??????????# #??????? | | ??????????????????######## #??????????# #??????? | | ?????????????????????????# #???????#### ??????? | | ?????????????????????????# #?????? ?????? | | ?????????????????????????# ###### #?????? | | ?????????????????????????# "T" #?????? | | ?????????????????????????+ #?????? | | ?????????????????????????# #????? | | ?????????????????????????# #????? | | ?????????????????????????# ! +????? | | ?????????##??????????????# ###### #### #????? | | ?????????# ###########w #??????#???# ??????? | | ?????????# ! #??????????? ??????? | | ?????????# Y w #??????????? ??????? | | ?????????# @a #???????????????????? | | ?????????# / ##########/####???????????????????? | | ?????????##????????????? ??????????????????????? | | ???????????????????????? ??????????????????????? | | ???????????????????????# "?????????????????????? | | ???????????????????????# "?????????????????????? | | ???????????????????????# """????????????????????? | | ???????????????????????# "" ????????????????????? | | ???????????????????????# """#???????????????????? | | ???????????????????????#! """????????????H???????? | | ???????????????????????# "??????????????????????? | | ???????????????????????# ??????????????????????? | | ???????????????????????# ???????????????????????? | | ???????????????????????# ???????????????????????? | | ????????????????????????##???????????????????????? | | ?????????????????????????????????????????????????? | | ?????????????????????????????????????????????????? | | | | | | | | | | | | | | | | | +----------------------------------------------------+ Best States ------------- Heat Dissipation 31 Energy Generation 10 Energy Capacity 125 Matter Stores 300 Matter Capacity 300 Sight Range 18 Robot Scan Range 15 Terrain Scan Range 14 Terrain Scan Density 10 Evasion (%) 62 Item Schematics ----------------- None Robot Schematics ------------------ None Fabricated ------------ Nothing Alien Tech Used ----------------- None Achievements -------------- None Challenges ------------ None Game ------ Seed FieldRelayRefractor Manual? 0 Play Time 00:18:29 Cumulative 24.4 hours Start 2024.04.15 @ 22:13:30 End 2024.04.15 @ 22:32:37 Sessions 1 Manual Loads 0 Difficulty Rogue Special Mode None Game No. 76 Rogue 76 Adventurer 0 Explorer 0 Win Type - Total 0 Types 0/0/0/0/0/0/0/0/0 Lore% 16 Gallery% 31 Achievement% 25 Wizard Run 0 Options --------- Layout 1 ASCII 1 Keyboard 0 Movement Arrows Keybinds 1 Fullscreen 1 Font 18/SmallcapsGlow Map View 50x40 Zoom Use 0% Tactical HUD 0 Map Filters NONE Filters NONE Steam 1 RUN: 7f15ea83-2890-4383-a079-14320f3ab97b